[Event "ONJK DE"]
[Site "Enschede, Netherlands"]
[Date "2022.08.09"]
[Round "4.1"]
[White "Decraene, Lotus"]
[Black "Groenewoud, Joel"]
[Result "0-1"]
[TimeControl "40min + 30sec/move"]
[WhiteElo "1332"]
[BlackElo "1497"]

1. e4 {[%clk 00:38:40]} {[%emt 00:02:07]} c6 {[%clk 00:40:59]} {[%emt
00:00:15]} 2. d4 {[%clk 00:38:58]} {[%emt 00:00:12]} d5 {[%clk 00:41:20]}
{[%emt 00:00:09]} 3. exd5 {[%clk 00:39:17]} {[%emt 00:00:11]} cxd5 {[%clk
00:41:46]} {[%emt 00:00:04]} 4. Bd3 {[%clk 00:39:40]} {[%emt 00:00:07]} Nc6
{[%clk 00:42:05]} {[%emt 00:00:11]} 5. c3 {[%clk 00:40:09]} Qc7 {[%clk
00:42:06]} {[%emt 00:00:29]} 6. Ne2 {[%clk 00:40:23]} {[%emt 00:00:17]} e6
{[%clk 00:41:37]} {[%emt 00:00:59]} 7. Bf4 {[%clk 00:39:52]} {[%emt 00:01:01]}
Bd6 {[%clk 00:41:56]} {[%emt 00:00:11]} 8. Bxd6 {[%clk 00:40:13]} {[%emt
00:00:09]} Qxd6 {[%clk 00:42:17]} {[%emt 00:00:08]} 9. Nd2 {[%clk 00:40:11]}
{[%emt 00:00:32]} Nf6 {[%clk 00:42:34]} {[%emt 00:00:13]} 10. O-O {[%clk
00:40:19]} {[%emt 00:00:22]} O-O {[%clk 00:42:50]} {[%emt 00:00:14]} 11. Ng3
{[%clk 00:40:25]} {[%emt 00:00:24]} e5 {[%clk 00:41:42]} {[%emt 00:01:38]} 12.
dxe5 {[%clk 00:40:28]} {[%emt 00:00:27]} Nxe5 {[%clk 00:42:00]} {[%emt
00:00:12]} 13. Bf5 {[%clk 00:40:15]} {[%emt 00:00:43]} Rd8 {[%clk 00:40:58]}
{[%emt 00:01:32]} 14. Nf3 {[%clk 00:40:03]} {[%emt 00:00:42]} Nc4 {[%clk
00:36:11]} {[%emt 00:05:17]} 15. b3 {[%clk 00:39:49]} {[%emt 00:00:44]} Nb6
{[%clk 00:36:15]} {[%emt 00:00:25]} 16. Nd4 {[%clk 00:39:05]} {[%emt 00:01:15]}
g6 {[%clk 00:34:13]} {[%emt 00:02:33]} 17. Bd3 {[%clk 00:35:24]} {[%emt
00:04:11]} h5 {[%clk 00:32:42]} {[%emt 00:02:00]} 18. Qd2 {[%clk 00:35:00]}
{[%emt 00:00:52]} Nbd7 {[%clk 00:19:26]} {[%emt 00:13:48]} 19. Qg5 {[%clk
00:26:58]} {[%emt 00:08:30]} Nf8 {[%clk 00:09:05]} {[%emt 00:10:53]} 20. Nb5
{[%clk 00:14:54]} {[%emt 00:12:34]} N8h7 {[%clk 00:06:58]} {[%emt 00:02:37]} 21.
Qe3 {[%clk 00:11:43]} {[%emt 00:03:41]} Qf8 {[%clk 00:02:37]} {[%emt 00:04:51]}
22. Nc7 {[%clk 00:10:39]} {[%emt 00:01:34]} Rb8 {[%clk 00:00:45]} {[%emt
00:02:22]} 23. Qxa7 {[%clk 00:10:18]} {[%emt 00:00:50]} Bd7 {[%clk 00:00:49]}
{[%emt 00:00:27]} 24. Qe3 {[%clk 00:10:09]} {[%emt 00:00:39]} b5 {[%clk
00:00:38]} {[%emt 00:00:42]} 25. Na6 {[%clk 00:09:50]} {[%emt 00:00:48]} Rbc8
{[%clk 00:00:33]} {[%emt 00:00:35]} 26. Rac1 {[%clk 00:08:50]} {[%emt
00:01:31]} Ng4 {[%clk 00:00:34]} {[%emt 00:00:29]} 27. Qe2 {[%clk 00:08:54]}
{[%emt 00:00:25]} h4 {[%clk 00:00:35]} {[%emt 00:00:30]} 28. Nh1 {[%clk
00:06:39]} {[%emt 00:02:44]} Qd6 {[%clk 00:00:34]} {[%emt 00:00:31]} 29. f4
{[%clk 00:06:09]} {[%emt 00:01:00]} Qxa6 {[%clk 00:00:39]} {[%emt 00:00:25]} 30.
f5 {[%clk 00:06:08]} {[%emt 00:00:30]} Qb6+ {[%clk 00:00:44]} {[%emt 00:00:26]}
31. Nf2 {[%clk 00:06:35]} {[%emt 00:00:04]} Nxf2 {[%clk 00:00:43]} {[%emt
00:00:30]} 32. Qxf2 {[%clk 00:06:38]} {[%emt 00:00:27]} Qxf2+ {[%clk 00:00:41]}
{[%emt 00:00:33]} 33. Rxf2 {[%emt 00:00:05]} b4 {[%clk 00:00:35]} {[%emt
00:00:34]} 34. fxg6 {[%clk 00:07:20]} {[%emt 00:00:13]} fxg6 {[%clk 00:00:39]}
{[%emt 00:00:27]} 35. Bxg6 {[%clk 00:07:45]} {[%emt 00:00:06]} bxc3 {[%clk
00:00:36]} {[%emt 00:00:32]} 36. Bf7+ {[%clk 00:08:07]} {[%emt 00:00:08]} Kh8
{[%clk 00:00:35]} {[%emt 00:00:32]} 37. Bxd5 {[%clk 00:08:29]} {[%emt
00:00:07]} Bb5 {[%clk 00:00:36]} {[%emt 00:00:29]} 38. Be4 {[%clk 00:07:27]}
{[%emt 00:01:32]} Ng5 {[%clk 00:00:34]} {[%emt 00:00:32]} 39. Bf5 {[%clk
00:07:49]} {[%emt 00:00:07]} Rc5 {[%clk 00:00:34]} {[%emt 00:00:31]} 40. b4
{[%clk 00:06:54]} {[%emt 00:01:26]} Rc4 {[%clk 00:00:33]} {[%emt 00:00:31]} 41.
Rfc2 {[%clk 00:06:44]} {[%emt 00:00:39]} Rcd4 {[%clk 00:00:33]} {[%emt
00:00:30]} 42. Rxc3 {[%clk 00:06:46]} {[%emt 00:00:28]} R8d5 {[%clk 00:00:35]}
{[%emt 00:00:29]} 43. Bg6 {[%clk 00:05:44]} {[%emt 00:01:31]} Kg7 {[%clk
00:00:36]} {[%emt 00:00:29]} 44. Bh5 {[%clk 00:05:33]} {[%emt 00:00:42]} Kh6
{[%clk 00:00:38]} {[%emt 00:00:28]} 45. Bf3 {[%clk 00:05:06]} {[%emt 00:00:57]}
Rf5 {[%clk 00:00:33]} {[%emt 00:00:35]} 46. Rc5 {[%clk 00:04:46]} {[%emt
00:00:51]} Nxf3+ {[%clk 00:00:34]} {[%emt 00:00:29]} 47. gxf3 {[%clk 00:05:13]}
{[%emt 00:00:02]} Rxc5 {[%clk 00:00:34]} {[%emt 00:00:30]} 48. bxc5 {[%clk
00:05:42]} {[%emt 00:00:02]} Bc6 {[%clk 00:00:37]} {[%emt 00:00:26]} 49. Kg2
{[%clk 00:05:55]} {[%emt 00:00:17]} Rd2+ {[%clk 00:00:47]} {[%emt 00:00:20]} 50.
Kh3 {[%clk 00:06:11]} {[%emt 00:00:15]} Kh5 {[%clk 00:00:46]} {[%emt 00:00:30]}
51. Rc4 {[%clk 00:05:09]} {[%emt 00:01:32]} Bd7+ {[%clk 00:01:08]} {[%emt
00:00:08]} 52. Rg4 {[%clk 00:05:38]} {[%emt 00:00:01]} Bxg4+ {[%clk 00:01:29]}
{[%emt 00:00:10]} 53. fxg4+ {[%clk 00:06:07]} Kg5 {[%clk 00:01:38]} {[%emt
00:00:22]} 0-1

[Event "ONJK DE"]
[Site "Enschede, Netherlands"]
[Date "2022.08.09"]
[Round "4.2"]
[White "Van Haaften, Jelle"]
[Black "Declerck, Adriaan"]
[Result "0-1"]
[TimeControl "40min + 30sec/move"]
[WhiteElo "992"]
[BlackElo "1371"]

1. d4 {[%clk 00:40:59]} Nf6 {[%clk 00:40:56]} {[%emt 00:00:05]} 2. c4 {[%clk
00:41:25]} {[%emt 00:00:04]} e6 {[%clk 00:41:22]} {[%emt 00:00:04]} 3. Nc3
{[%clk 00:41:51]} {[%emt 00:00:05]} Bb4 {[%clk 00:41:48]} {[%emt 00:00:03]} 4.
a3 {[%clk 00:42:14]} {[%emt 00:00:08]} Bxc3+ {[%clk 00:42:12]} {[%emt
00:00:06]} 5. bxc3 {[%clk 00:42:38]} {[%emt 00:00:05]} O-O {[%clk 00:42:31]}
{[%emt 00:00:12]} 6. Nf3 {[%clk 00:43:04]} {[%emt 00:00:03]} c5 {[%clk
00:42:47]} {[%emt 00:00:13]} 7. d5 {[%clk 00:43:26]} {[%emt 00:00:09]} d6
{[%clk 00:42:38]} {[%emt 00:00:40]} 8. Bg5 {[%clk 00:43:48]} {[%emt 00:00:08]}
h6 {[%clk 00:42:19]} {[%emt 00:00:48]} 9. Bh4 {[%clk 00:44:03]} {[%emt
00:00:14]} g5 {[%clk 00:41:10]} {[%emt 00:01:39]} 10. Bg3 {[%clk 00:43:25]}
{[%emt 00:01:09]} Qa5 {[%clk 00:40:09]} {[%emt 00:01:30]} 11. Qc2 {[%clk
00:43:23]} {[%emt 00:00:32]} Rd8 {[%clk 00:36:53]} {[%emt 00:03:45]} 12. h4
{[%clk 00:42:31]} {[%emt 00:01:23]} g4 {[%clk 00:36:10]} {[%emt 00:01:10]} 13.
Nd2 {[%clk 00:42:48]} {[%emt 00:00:16]} exd5 {[%clk 00:36:17]} {[%emt
00:00:22]} 14. cxd5 {[%clk 00:39:52]} {[%emt 00:03:27]} Nxd5 {[%clk 00:36:18]}
{[%emt 00:00:29]} 15. c4 {[%clk 00:39:22]} {[%emt 00:01:00]} Ne7 {[%clk
00:35:43]} {[%emt 00:01:04]} 16. Qe4 {[%clk 00:37:23]} {[%emt 00:02:31]} Qc3
{[%clk 00:33:53]} {[%emt 00:02:18]} 17. Rd1 {[%clk 00:36:25]} {[%emt 00:01:29]}
Nbc6 {[%clk 00:32:53]} {[%emt 00:01:30]} 18. h5 {[%clk 00:34:41]} {[%emt
00:02:14]} Nd4 {[%clk 00:31:44]} {[%emt 00:01:39]} 19. f3 {[%clk 00:32:06]}
{[%emt 00:03:05]} Bf5 {[%clk 00:25:37]} {[%emt 00:06:37]} 20. Qxe7 {[%clk
00:30:08]} {[%emt 00:02:28]} Re8 {[%clk 00:24:46]} {[%emt 00:01:21]} 21. Qxe8+
{[%clk 00:27:05]} {[%emt 00:03:33]} Rxe8 {[%clk 00:24:54]} {[%emt 00:00:21]} 22.
e4 {[%clk 00:27:27]} {[%emt 00:00:09]} Nc2+ {[%clk 00:25:14]} {[%emt 00:00:10]}
0-1

[Event "ONJK DE"]
[Site "Enschede, Netherlands"]
[Date "2022.08.09"]
[Round "4.3"]
[White "Vogels, Mathijs"]
[Black "Verwer, Oscar"]
[Result "0-1"]
[TimeControl "40min + 30sec/move"]
[WhiteElo "1283"]
[BlackElo "1361"]

1. e4 {[%clk 00:40:59]} c5 {[%clk 00:40:57]} {[%emt 00:00:03]} 2. Nc3 {[%clk
00:41:21]} {[%emt 00:00:08]} Nc6 {[%clk 00:41:22]} {[%emt 00:00:06]} 3. g3
{[%clk 00:41:40]} {[%emt 00:00:10]} g6 {[%clk 00:41:39]} {[%emt 00:00:13]} 4.
Bg2 {[%clk 00:42:05]} {[%emt 00:00:05]} Bg7 {[%clk 00:41:56]} {[%emt 00:00:12]}
5. d3 {[%clk 00:42:21]} {[%emt 00:00:14]} e6 {[%clk 00:41:53]} {[%emt
00:00:34]} 6. Be3 {[%clk 00:41:47]} {[%emt 00:01:03]} d6 {[%clk 00:41:36]}
{[%emt 00:00:48]} 7. Qd2 {[%clk 00:41:43]} {[%emt 00:00:34]} a6 {[%clk
00:40:27]} {[%emt 00:01:38]} 8. Nge2 {[%clk 00:41:48]} {[%emt 00:00:25]} Nd4
{[%clk 00:39:46]} {[%emt 00:01:11]} 9. O-O {[%clk 00:40:11]} {[%emt 00:02:07]}
Rb8 {[%clk 00:37:18]} {[%emt 00:02:59]} 10. Bxd4 {[%clk 00:38:30]} {[%emt
00:02:10]} cxd4 {[%clk 00:36:54]} {[%emt 00:00:54]} 11. Nd1 {[%clk 00:38:51]}
{[%emt 00:00:09]} Ne7 {[%clk 00:35:25]} {[%emt 00:01:59]} 12. f4 {[%clk
00:35:15]} {[%emt 00:04:06]} Qb6 {[%clk 00:30:35]} {[%emt 00:05:20]} 13. Qe1
{[%clk 00:34:46]} {[%emt 00:00:59]} e5 {[%clk 00:26:22]} {[%emt 00:04:43]} 14.
Qf2 {[%clk 00:34:50]} {[%emt 00:00:26]} f5 {[%clk 00:22:11]} {[%emt 00:04:42]}
15. Rb1 {[%clk 00:32:17]} {[%emt 00:03:02]} Be6 {[%clk 00:20:23]} {[%emt
00:02:18]} 16. Ra1 {[%clk 00:32:14]} {[%emt 00:00:33]} Rc8 {[%clk 00:20:01]}
{[%emt 00:00:52]} 17. c3 {[%clk 00:32:31]} {[%emt 00:00:14]} O-O {[%clk
00:16:48]} {[%emt 00:03:42]} 18. cxd4 {[%clk 00:31:02]} {[%emt 00:01:59]} exd4
{[%clk 00:16:48]} {[%emt 00:00:31]} 19. Re1 {[%clk 00:28:06]} {[%emt 00:03:26]}
Nc6 {[%clk 00:16:03]} {[%emt 00:01:12]} 20. Nc1 {[%clk 00:23:57]} {[%emt
00:04:41]} Nb4 {[%clk 00:14:32]} {[%emt 00:02:02]} 21. Re2 {[%clk 00:21:30]}
{[%emt 00:02:57]} Qb5 {[%clk 00:14:11]} {[%emt 00:00:51]} 22. exf5 {[%clk
00:20:17]} {[%emt 00:01:42]} Bxf5 {[%clk 00:13:28]} {[%emt 00:01:13]} 23. a4
{[%clk 00:19:06]} {[%emt 00:01:41]} Qb6 {[%clk 00:13:04]} {[%emt 00:00:55]} 24.
Be4 {[%clk 00:18:27]} {[%emt 00:01:08]} Bg4 {[%clk 00:12:33]} {[%emt 00:01:01]}
25. Bf3 {[%clk 00:18:22]} {[%emt 00:00:36]} Bxf3 {[%clk 00:12:34]} {[%emt
00:00:28]} 26. Qxf3 {[%clk 00:18:41]} {[%emt 00:00:11]} Rfe8 {[%clk 00:11:51]}
{[%emt 00:01:14]} 27. Na2 {[%clk 00:17:55]} {[%emt 00:01:15]} Nxa2 {[%clk
00:11:21]} {[%emt 00:00:59]} 28. Rxa2 {[%clk 00:18:07]} {[%emt 00:00:19]} Qb3
{[%clk 00:11:02]} {[%emt 00:00:49]} 29. Ra1 {[%clk 00:17:49]} {[%emt 00:00:47]}
Rxe2 {[%clk 00:10:12]} {[%emt 00:01:20]} 30. Qxe2 {[%clk 00:18:06]} {[%emt
00:00:12]} Rc2 {[%clk 00:10:28]} {[%emt 00:00:15]} 31. Qe8+ {[%clk 00:17:38]}
{[%emt 00:00:58]} Bf8 {[%clk 00:10:47]} {[%emt 00:00:12]} 32. Ra3 {[%clk
00:17:42]} {[%emt 00:00:25]} Qd5 {[%clk 00:10:56]} {[%emt 00:00:21]} 33. Qe4
{[%clk 00:17:18]} {[%emt 00:00:55]} Qxe4 {[%clk 00:11:17]} {[%emt 00:00:08]} 34.
dxe4 {[%clk 00:17:43]} {[%emt 00:00:05]} d5 {[%clk 00:10:01]} {[%emt 00:01:47]}
35. Rf3 {[%clk 00:16:06]} {[%emt 00:02:06]} dxe4 {[%clk 00:09:58]} {[%emt
00:00:34]} 36. Rf2 {[%clk 00:15:33]} {[%emt 00:01:03]} d3 {[%clk 00:08:09]}
{[%emt 00:02:19]} 37. Rf1 {[%clk 00:14:46]} {[%emt 00:01:17]} Bc5+ {[%clk
00:08:18]} {[%emt 00:00:21]} 38. Kh1 {[%clk 00:14:54]} {[%emt 00:00:22]} e3
{[%clk 00:07:53]} {[%emt 00:00:55]} 39. Re1 {[%clk 00:14:56]} {[%emt 00:00:27]}
e2 {[%clk 00:07:56]} {[%emt 00:00:27]} 40. Nc3 {[%clk 00:14:32]} {[%emt
00:00:55]} Bf2 {[%clk 00:07:59]} {[%emt 00:00:26]} 41. Rxe2 {[%clk 00:14:25]}
{[%emt 00:00:38]} dxe2 {[%clk 00:08:12]} {[%emt 00:00:17]} 42. Nxe2 {[%clk
00:14:46]} {[%emt 00:00:08]} Rxe2 {[%clk 00:08:30]} {[%emt 00:00:13]} 43. Kg2
{[%clk 00:14:51]} {[%emt 00:00:24]} Bc5+ {[%emt 00:00:24]} 44. Kf3 {[%clk
00:14:59]} {[%emt 00:00:12]} Rxb2 {[%clk 00:09:04]} {[%emt 00:00:12]} 45. a5
{[%clk 00:15:03]} {[%emt 00:00:27]} b6 {[%clk 00:09:10]} {[%emt 00:00:24]} 46.
axb6 {[%clk 00:15:14]} {[%emt 00:00:19]} Rxb6 {[%clk 00:09:35]} {[%emt
00:00:05]} 47. Kg2 {[%clk 00:15:38]} {[%emt 00:00:06]} a5 {[%clk 00:09:55]}
{[%emt 00:00:09]} 48. Kf3 {[%clk 00:16:01]} {[%emt 00:00:07]} a4 {[%clk
00:10:21]} {[%emt 00:00:04]} 49. Kg2 {[%clk 00:16:27]} {[%emt 00:00:05]} a3
{[%clk 00:10:48]} {[%emt 00:00:03]} 50. Kf3 {[%clk 00:16:51]} {[%emt 00:00:06]}
a2 {[%clk 00:11:11]} {[%emt 00:00:07]} 51. Kg2 {[%clk 00:17:18]} {[%emt
00:00:02]} a1=Q {[%clk 00:11:37]} {[%emt 00:00:05]} 52. Kh3 {[%clk 00:17:42]}
{[%emt 00:00:06]} Qf1+ {[%clk 00:11:58]} {[%emt 00:00:09]} 53. Kg4 {[%clk
00:17:57]} {[%emt 00:00:15]} h5+ {[%clk 00:12:04]} {[%emt 00:00:24]} 54. Kg5
{[%clk 00:18:10]} {[%emt 00:00:18]} Be7+ {[%clk 00:12:18]} {[%emt 00:00:15]} 55.
Kh6 {[%clk 00:18:30]} {[%emt 00:00:09]} g5+ {[%clk 00:12:26]} {[%emt 00:00:22]}
56. Kxh5 {[%clk 00:18:52]} {[%emt 00:00:08]} Qh3# {[%clk 00:12:52]} {[%emt
00:00:04]} 0-1

[Event "ONJK DE"]
[Site "Enschede, Netherlands"]
[Date "2022.08.09"]
[Round "4.4"]
[White "Terlouw, Wouter"]
[Black "Peeters, Yumi"]
[Result "1-0"]
[TimeControl "40min + 30sec/move"]
[WhiteElo "1720"]
[BlackElo "1213"]

1. d4 {[%clk 00:40:56]} {[%emt 00:00:03]} d5 {[%clk 00:40:50]} {[%emt
00:00:10]} 2. c4 {[%clk 00:41:18]} {[%emt 00:00:09]} c6 {[%clk 00:40:40]}
{[%emt 00:00:40]} 3. Nc3 {[%clk 00:41:34]} {[%emt 00:00:12]} Nf6 {[%clk
00:40:15]} {[%emt 00:00:56]} 4. Nf3 {[%clk 00:41:55]} {[%emt 00:00:09]} Bf5
{[%clk 00:39:10]} {[%emt 00:01:36]} 5. cxd5 {[%clk 00:41:46]} {[%emt 00:00:38]}
cxd5 {[%clk 00:39:03]} {[%emt 00:00:38]} 6. Qb3 {[%clk 00:42:03]} {[%emt
00:00:12]} Qb6 {[%clk 00:38:03]} {[%emt 00:01:30]} 7. Nxd5 {[%clk 00:40:37]}
{[%emt 00:01:56]} Qxb3 {[%clk 00:38:04]} {[%emt 00:00:30]} 8. Nxf6+ {[%clk
00:40:52]} {[%emt 00:00:15]} exf6 {[%clk 00:38:11]} {[%emt 00:00:24]} 9. axb3
{[%clk 00:40:47]} {[%emt 00:00:34]} Bd6 {[%clk 00:37:25]} {[%emt 00:01:16]} 10.
e3 {[%clk 00:39:56]} {[%emt 00:01:17]} O-O {[%clk 00:37:30]} {[%emt 00:00:29]}
11. Bc4 {[%emt 00:01:31]} Nc6 {[%clk 00:37:31]} {[%emt 00:00:01]} 12. Bd2
{[%clk 00:38:20]} {[%emt 00:01:31]} Rfe8 {[%clk 00:34:52]} {[%emt 00:03:12]} 13.
Rc1 {[%clk 00:36:33]} {[%emt 00:02:12]} Nb4 {[%clk 00:33:52]} {[%emt 00:01:34]}
14. O-O {[%clk 00:36:14]} {[%emt 00:00:49]} Nd3 {[%clk 00:34:07]} {[%emt
00:00:16]} 15. Bxd3 {[%clk 00:36:16]} {[%emt 00:00:28]} Bxd3 {[%clk 00:34:29]}
{[%emt 00:00:08]} 16. Rfe1 {[%clk 00:36:02]} {[%emt 00:00:41]} Re4 {[%clk
00:33:09]} {[%emt 00:01:53]} 17. Rc3 {[%clk 00:35:25]} {[%emt 00:01:04]} Bb5
{[%clk 00:33:21]} {[%emt 00:00:20]} 18. Rec1 {[%clk 00:35:13]} {[%emt
00:00:40]} Bc6 {[%clk 00:33:45]} {[%emt 00:00:09]} 19. Be1 {[%clk 00:34:11]}
{[%emt 00:01:27]} Rg4 {[%clk 00:33:22]} {[%emt 00:00:56]} 20. h3 {[%clk
00:33:01]} {[%emt 00:01:39]} Rg6 {[%clk 00:33:03]} {[%emt 00:00:50]} 21. Nh4
{[%clk 00:30:40]} {[%emt 00:02:51]} Rg5 {[%clk 00:33:15]} {[%emt 00:00:19]} 22.
e4 {[%clk 00:27:50]} {[%emt 00:03:17]} Bf4 {[%clk 00:32:07]} {[%emt 00:01:41]}
23. R1c2 {[%clk 00:26:55]} {[%emt 00:01:22]} h6 {[%clk 00:31:29]} {[%emt
00:01:11]} 24. d5 {[%clk 00:26:26]} {[%emt 00:00:59]} Bd7 {[%clk 00:31:09]}
{[%emt 00:00:50]} 25. Bd2 {[%clk 00:25:20]} {[%emt 00:01:37]} Rh5 {[%clk
00:29:55]} {[%emt 00:01:43]} 26. Nf3 {[%clk 00:19:33]} {[%emt 00:06:14]} Be5
{[%clk 00:28:35]} {[%emt 00:01:54]} 27. Nxe5 {[%clk 00:18:41]} {[%emt
00:01:22]} Rxe5 {[%clk 00:28:54]} {[%emt 00:00:11]} 28. Rc7 {[%clk 00:18:50]}
{[%emt 00:00:16]} Bb5 {[%clk 00:28:25]} {[%emt 00:01:03]} 29. Rxb7 {[%clk
00:16:58]} {[%emt 00:02:22]} Bd3 {[%clk 00:28:16]} {[%emt 00:00:39]} 30. Rcc7
{[%clk 00:16:59]} {[%emt 00:00:26]} Bxe4 {[%clk 00:27:29]} {[%emt 00:01:21]} 31.
Rxf7 {[%clk 00:16:49]} {[%emt 00:00:40]} Rxd5 {[%clk 00:26:42]} {[%emt
00:01:16]} 32. Rxg7+ {[%clk 00:16:48]} {[%emt 00:00:32]} Kh8 {[%clk 00:26:49]}
{[%emt 00:00:23]} 33. f3 {[%clk 00:11:43]} {[%emt 00:05:35]} Bxf3 {[%clk
00:26:31]} {[%emt 00:00:47]} 34. Rh7+ {[%clk 00:11:45]} {[%emt 00:00:27]} Kg8
{[%clk 00:26:44]} {[%emt 00:00:19]} 35. Rbg7+ {[%clk 00:12:07]} {[%emt
00:00:07]} Kf8 {[%clk 00:26:41]} {[%emt 00:00:34]} 36. Bb4+ {[%clk 00:12:33]}
{[%emt 00:00:03]} 1-0

[Event "ONJK DE"]
[Site "Enschede, Netherlands"]
[Date "2022.08.09"]
[Round "4.5"]
[White "Gang, Kevin Wan Ze"]
[Black "Breider, Jayden"]
[Result "1/2-1/2"]
[TimeControl "40min + 30sec/move"]
[WhiteElo "1105"]
[BlackElo "1350"]

1. e4 {[%clk 00:40:58]} {[%emt 00:00:01]} c5 {[%clk 00:40:55]} {[%emt
00:00:05]} 2. d4 {[%clk 00:41:25]} {[%emt 00:00:03]} cxd4 {[%clk 00:41:14]}
{[%emt 00:00:11]} 3. c3 {[%clk 00:41:46]} {[%emt 00:00:09]} e5 {[%clk
00:41:31]} {[%emt 00:00:13]} 4. Nf3 {[%clk 00:41:46]} {[%emt 00:00:31]} Nc6
{[%emt 00:00:13]} 5. cxd4 {[%clk 00:42:02]} {[%emt 00:00:11]} exd4 {[%clk
00:41:53]} {[%emt 00:00:27]} 6. Nxd4 {[%clk 00:42:21]} {[%emt 00:00:11]} Bb4+
{[%clk 00:42:00]} {[%emt 00:00:24]} 7. Nc3 {[%clk 00:42:32]} {[%emt 00:00:18]}
Nf6 {[%clk 00:42:01]} {[%emt 00:00:17]} 8. Nxc6 {[%clk 00:42:59]} {[%emt
00:00:16]} bxc6 {[%clk 00:42:05]} {[%emt 00:00:26]} 9. Bg5 {[%clk 00:42:36]}
{[%emt 00:00:53]} d6 {[%clk 00:41:21]} {[%emt 00:01:14]} 10. Bc4 {[%clk
00:42:24]} {[%emt 00:00:42]} O-O {[%clk 00:40:32]} {[%emt 00:01:18]} 11. O-O
{[%clk 00:42:31]} {[%emt 00:00:22]} Be6 {[%clk 00:40:01]} {[%emt 00:01:03]} 12.
Qb3 {[%clk 00:42:23]} {[%emt 00:00:38]} Bxc4 {[%clk 00:38:13]} {[%emt
00:02:18]} 13. Qxc4 {[%clk 00:42:39]} {[%emt 00:00:13]} Bxc3 {[%clk 00:38:35]}
{[%emt 00:00:08]} 14. Qxc3 {[%clk 00:42:56]} {[%emt 00:00:13]} Nxe4 {[%clk
00:35:53]} {[%emt 00:03:13]} 15. Bxd8 {[%clk 00:42:46]} {[%emt 00:00:40]} Nxc3
{[%clk 00:36:09]} {[%emt 00:00:14]} 16. Be7 {[%clk 00:43:05]} {[%emt 00:00:11]}
Rfe8 {[%clk 00:35:50]} {[%emt 00:00:49]} 17. Bxd6 {[%emt 00:00:37]} Ne4 {[%clk
00:34:54]} {[%emt 00:01:23]} 18. Bg3 {[%clk 00:43:03]} {[%emt 00:00:27]} Rad8
{[%clk 00:33:58]} {[%emt 00:01:26]} 19. Rad1 {[%clk 00:42:38]} {[%emt
00:00:54]} Nxg3 {[%clk 00:34:08]} {[%emt 00:00:21]} 20. fxg3 {[%clk 00:42:17]}
{[%emt 00:00:51]} f6 {[%clk 00:33:07]} {[%emt 00:01:32]} 21. Kf2 {[%clk
00:41:39]} {[%emt 00:01:08]} Kf7 {[%clk 00:33:03]} {[%emt 00:00:34]} 22. Rfe1
{[%clk 00:41:21]} {[%emt 00:00:47]} Rxe1 {[%clk 00:32:37]} {[%emt 00:00:57]} 23.
Kxe1 {[%clk 00:41:36]} {[%emt 00:00:14]} Rxd1+ {[%clk 00:32:58]} {[%emt
00:00:08]} 24. Kxd1 {[%clk 00:41:55]} {[%emt 00:00:13]} Ke6 {[%emt 00:00:04]}
25. Kd2 {[%clk 00:42:09]} {[%emt 00:00:15]} Kd5 {[%clk 00:33:37]} {[%emt
00:00:18]} 26. Kd3 {[%clk 00:42:23]} {[%emt 00:00:16]} a5 {[%clk 00:33:21]}
{[%emt 00:00:38]} 27. a4 {[%clk 00:42:46]} {[%emt 00:00:15]} Kc5 {[%clk
00:33:08]} {[%emt 00:00:43]} 28. Kc3 {[%clk 00:42:49]} {[%emt 00:00:27]} f5
{[%clk 00:33:33]} {[%emt 00:00:05]} 29. h3 {[%clk 00:42:26]} {[%emt 00:00:51]}
h5 {[%clk 00:33:33]} {[%emt 00:00:31]} 30. h4 {[%emt 00:01:03]} g6 {[%clk
00:33:21]} {[%emt 00:00:13]} 31. b3 {[%clk 00:42:47]} {[%emt 00:00:06]} Kd5
{[%clk 00:33:24]} {[%emt 00:00:27]} 32. Kd3 {[%clk 00:42:55]} {[%emt 00:00:21]}
c5 {[%clk 00:33:43]} {[%emt 00:00:12]} 33. Kc3 {[%clk 00:40:26]} {[%emt
00:02:59]} Kd6 {[%clk 00:30:29]} {[%emt 00:03:44]} 34. Kd3 {[%clk 00:40:41]}
{[%emt 00:00:16]} Kd5 {[%clk 00:30:38]} {[%emt 00:00:20]} 35. Kc3 {[%clk
00:40:38]} {[%emt 00:00:32]} Kd6 {[%clk 00:30:35]} {[%emt 00:00:33]} 36. Kd3
{[%clk 00:40:48]} {[%emt 00:00:20]} Kc7 {[%clk 00:29:56]} {[%emt 00:01:10]} 37.
Kc4 {[%clk 00:40:56]} {[%emt 00:00:22]} Kc6 {[%clk 00:30:20]} {[%emt 00:00:06]}
38. Kd3 {[%clk 00:41:14]} {[%emt 00:00:12]} Kd5 {[%clk 00:30:41]} {[%emt
00:00:09]} 1/2-1/2